bitfinex/quotes_ETHUSD_20250629
["timestamp","ask_amount","ask_price","bid_price","bid_amount"]
[1751161996308,0.2056,2430.6,2430.3,9.50328882]
[1751161996798,0.2056,2430.6,2430.3,6.623]
[1751161997523,0.2056,2430.6,2430.3,9.50329778]
[1751162004825,0.2056,2430.6,2430.3,6.623]
[1751162005125,0.2056,2430.6,2430.2,3.08596332]
[1751162005304,0.2056,2430.6,2430.3,6.623]
[1751162005718,0.2056,2430.6,2430.3,2.88030225]
[1751162005918,0.2056,2430.6,2430.3,9.50330225]
[1751162006232,0.2056,2430.6,2430.3,2.88030225]
[1751162006393,0.2056,2430.6,2430.3,9.50330225]
[1751162006597,0.2056,2430.6,2430.3,2.88030225]
[1751162013141,0.2056,2430.6,2430.2,9.70895624]
[1751162013352,3.08555694,2430.6,2430.2,6.8286]
[1751162013559,10.0,2430.5,2430.2,0.2056]
[1751162013713,10.0,2430.5,2430.2,6.8276]
[1751162014651,10.0,2430.5,2430.2,9.70800965]
[1751162015436,10.2056,2430.6,2430.3,2.88025044]
[1751162015758,10.2056,2430.6,2430.3,2.88030284]
[1751162018930,0.2056,2430.6,2430.3,2.88030284]
[1751162019546,0.2056,2430.6,2430.4,0.7826]
[1751162021165,10.2056,2430.6,2430.4,0.7826]
[1751162026072,10.2056,2430.6,2430.3,6.622]
[1751162035573,10.2056,2430.6,2430.4,0.8292]
[1751162036370,13.08557366,2430.6,2430.2,0.2056]
[1751162036573,2.8800812,2430.5,2430.3,6.622]
[1751162036946,13.08561244,2430.6,2430.3,6.622]
[1751162037573,10.2056,2430.6,2430.3,6.622]
[1751162038378,13.08556396,2430.6,2430.3,6.622]
[1751162044484,2.88007083,2430.5,2430.2,0.2056]
[1751162047393,13.18839783,2430.6,2430.2,0.2056]
[1751162049493,2.88008071,2430.5,2430.2,0.2056]
[1751162050295,2.88006583,2430.5,2430.2,0.2056]
[1751162050491,2.88030284,2430.3,2430.0,7.4242]
[1751162050690,2.88030284,2430.3,2429.9,0.2066]
[1751162050889,12.88045152,2430.2,2429.9,6.8276]
[1751162051194,12.88045152,2430.2,2429.9,0.2066]
[1751162053671,10.0,2430.2,2429.9,0.2066]
[1751162053876,10.0,2430.2,2430.0,0.8046]
[1751162058511,10.0,2430.2,2429.9,9.70837554]
[1751162060474,10.0,2430.2,2429.9,6.8276]
[1751162061013,10.0,2430.2,2429.9,0.2066]
[1751162061184,2.88042775,2430.2,2429.9,6.8276]
[1751162061588,12.98316272,2430.3,2429.9,6.8276]
[1751162063419,12.98316272,2430.3,2429.9,9.70837219]
[1751162063717,10.1028,2430.3,2429.9,9.70837219]
[1751162063881,10.0,2430.3,2429.9,9.70837219]
[1751162064919,12.8803061,2430.3,2429.9,9.70837219]
[1751162065692,12.8803061,2430.3,2429.9,6.8276]
[1751162066191,2.88042718,2430.2,2429.9,6.8276]
[1751162067188,12.88035838,2430.3,2429.9,6.8276]
[1751162067519,2.88042956,2430.2,2429.9,6.8276]
[1751162067816,2.88042956,2430.2,2429.9,0.2066]
[1751162068033,0.2056,2430.1,2429.9,0.001]
[1751162071248,0.2056,2430.1,2429.9,2.88177469]
[1751162071834,0.2056,2430.1,2429.9,0.001]
[1751162077835,3.08614705,2430.1,2429.9,6.621]
[1751162078002,10.2056,2430.1,2429.9,6.621]
[1751162081637,13.08617359,2430.1,2429.9,6.621]
[1751162082325,10.2056,2430.1,2429.9,6.621]
[1751162082529,0.2056,2430.1,2429.9,6.621]
[1751162085868,0.2056,2430.1,2429.9,0.001]
[1751162086048,0.2056,2430.1,2429.9,6.621]
[1751162091757,0.2056,2430.1,2429.9,0.001]
[1751162091938,0.2056,2430.1,2429.9,6.621]
[1751162094770,0.2056,2430.1,2429.9,0.001]
[1751162094941,0.2056,2430.1,2429.9,6.621]
[1751162099852,3.0861597,2430.1,2429.9,6.621]
[1751162100052,3.0861597,2430.1,2429.9,6.62]
[1751162100368,0.2056,2430.1,2429.9,6.62]
[1751162100560,0.2056,2430.1,2429.9,0.001]
[1751162100878,3.0861688,2430.1,2429.9,0.001]
[1751162101973,0.2056,2430.1,2429.9,0.001]
[1751162102365,10.2056,2430.1,2429.9,0.001]
[1751162104345,0.2056,2430.1,2429.9,3.6809363]
[1751162104678,3.18826009,2430.7,2430.1,2.88049178]
[1751162104679,0.2056,2430.4,2430.1,2.88049178]
[1751162107944,2.87992362,2430.7,2430.1,3.67962459]
[1751162108186,10.2056,2430.6,2430.2,3.67961172]
[1751162108944,10.2056,2430.6,2430.2,0.7992]
[1751162109354,10.2056,2430.6,2430.2,3.67961086]
[1751162111200,10.2056,2430.6,2430.3,2.8802916]
[1751162111661,10.2056,2430.6,2430.2,3.6795703]
[1751162116199,0.2056,2430.6,2430.3,2.88028103]
[1751162117172,0.1028,2430.8,2430.2,0.7992]
[1751162117377,0.2056,2430.8,2430.5,2.88006583]
[1751162119479,0.2056,2430.8,2430.4,2.88013554]
[1751162120903,3.08531311,2430.8,2430.4,2.88013554]
[1751162121378,3.18811311,2430.8,2430.3,3.08583327]
[1751162122622,0.3084,2430.8,2430.4,2.8801842]
[1751162126021,3.18813129,2430.8,2430.4,2.8801842]
[1751162128719,3.18813129,2430.8,2430.3,3.08583715]
[1751162129326,10.0,2430.6,2430.3,3.08583715]
[1751162129617,10.0,2430.6,2430.3,3.9308898]
[1751162135627,13.18816326,2430.8,2430.3,3.9308898]
[1751162135791,13.18816326,2430.8,2430.3,3.08583715]
[1751162141640,10.0,2430.6,2430.3,3.08583715]
[1751162149005,10.0,2430.7,2430.3,3.08583715]
[1751162149205,12.87985185,2430.7,2430.3,3.08583715]
[1751162150839,10.0,2430.7,2430.3,3.08583715]
[1751162151739,12.87983738,2430.7,2430.3,3.08583715]
[1751162155641,10.0,2430.7,2430.3,3.08583715]
[1751162157137,10.0,2430.7,2430.4,0.8108]
[1751162157312,10.0,2430.7,2430.4,3.6909771]
[1751162159544,0.2056,2430.8,2430.5,2.88000771]
[1751162159841,0.2056,2430.8,2430.6,0.776]
[1751162160041,10.0,2430.9,2430.6,0.776]
[1751162160727,10.0,2430.9,2430.6,3.65593649]
[1751162161341,10.2056,2431.0,2430.6,3.65593649]
[1751162161749,3.08508061,2431.0,2430.6,3.65593649]
[1751162161951,3.08508061,2431.0,2430.6,0.776]
[1751162163045,2.87959556,2430.9,2430.6,0.776]
[1751162165960,10.0,2430.7,2430.5,0.2056]
[1751162166245,10.0,2430.5,2430.3,1.0355]
[1751162166447,10.0,2430.3,2430.0,0.8299]
[1751162166756,8.7731264,2430.2,2429.8,0.2066]
[1751162166947,0.2056,2430.2,2429.8,3.08748552]
[1751162168160,3.08602377,2430.2,2429.8,0.2066]
[1751162168971,3.08602377,2430.2,2429.8,3.08748946]
[1751162169259,3.08602377,2430.2,2429.8,0.2066]
[1751162169469,2.8805431,2430.1,2429.8,0.2066]
[1751162171435,8.77317033,2430.2,2429.8,0.2066]
[1751162172744,8.7731917,2430.2,2429.8,0.2066]
[1751162173446,0.2056,2430.2,2429.8,3.08747053]
[1751162177866,0.2056,2430.2,2429.9,2.88174465]
[1751162179173,0.2056,2430.2,2429.9,0.001]
[1751162179374,0.2056,2430.2,2429.9,2.88172629]
[1751162181946,0.2056,2430.2,2430.0,2.8806469]
[1751162183497,0.2056,2430.2,2430.0,3.6603469]
[1751162189986,0.2056,2430.2,2430.1,2.88053989]
[1751162190194,0.2056,2430.5,2430.3,0.8273]
[1751162195186,0.2056,2430.5,2430.3,3.70757555]
[1751162201105,0.2056,2430.5,2430.3,0.8273]
[1751162203108,0.2056,2430.5,2430.3,3.70754245]
[1751162203309,0.2056,2430.5,2430.3,0.8273]
[1751162203602,0.2056,2430.5,2430.3,3.7075448]
[1751162203803,0.2056,2430.5,2430.4,2.88018433]
[1751162204304,0.2056,2430.8,2430.5,2.87999117]
[1751162205796,0.2056,2430.8,2430.4,2.88011522]
[1751162207209,0.2056,2430.8,2430.5,2.88006127]
[1751162207501,0.2056,2430.8,2430.4,2.88011596]
[1751162208091,0.2056,2430.8,2430.5,2.88004425]
[1751162208691,0.2056,2430.8,2430.4,2.8801204]
[1751162209007,0.2056,2430.8,2430.4,3.5594483]
[1751162209405,0.2056,2430.8,2430.5,2.88005327]
[1751162209611,0.2056,2430.8,2430.4,3.55945323]
[1751162212912,0.2056,2430.8,2430.5,2.88000431]
[1751162213616,0.2056,2430.8,2430.4,3.55945351]
[1751162216419,3.08533481,2430.8,2430.3,3.91315874]
[1751162216718,10.1028,2430.7,2430.3,3.08585874]
[1751162218111,0.1028,2430.7,2430.4,2.88018358]
[1751162219620,0.1028,2430.7,2430.3,3.08584191]
[1751162219925,10.1028,2430.7,2430.3,3.08584191]
[1751162233922,12.98263515,2430.7,2430.3,3.08584191]
[1751162235731,12.98263515,2430.7,2430.3,0.2056]
[1751162237628,2.8799606,2430.6,2430.3,0.2056]
[1751162237929,0.1028,2430.4,2430.2,6.611]
[1751162238121,2.98299948,2430.4,2430.1,6.8166]
[1751162238531,2.98299948,2430.4,2430.1,0.2056]
[1751162238743,2.88032656,2430.3,2430.0,6.611]
[1751162239039,2.88032656,2430.3,2430.0,0.2056]
[1751162239248,3.18864873,2430.4,2430.0,0.2056]
[1751162243972,0.3084,2430.4,2430.0,0.2056]
[1751162244739,3.18864979,2430.4,2430.0,0.2056]
[1751162247039,2.98304979,2430.4,2429.9,2.88177082]
[1751162247236,3.08592256,2430.3,2429.9,0.001]
[1751162248980,0.2056,2430.3,2429.9,2.88169065]
[1751162250974,0.2056,2430.3,2430.0,0.763]
[1751162251185,0.2056,2430.3,2430.0,3.64364827]
[1751162252882,0.2056,2430.3,2429.9,2.88171123]
[1751162253087,0.3084,2430.3,2429.9,2.88171123]
[1751162255504,0.3084,2430.3,2430.0,2.88065475]
[1751162255906,0.3084,2430.3,2429.9,2.88171986]
[1751162259010,8.56757646,2430.2,2429.9,0.001]
[1751162259202,0.1028,2430.1,2429.9,0.001]
[1751162259976,0.3084,2430.1,2429.9,0.001]
[1751162264231,3.18894069,2430.1,2429.9,0.001]
[1751162266889,0.3084,2430.1,2429.9,0.001]
[1751162267085,8.67056347,2430.0,2429.9,0.001]
[1751162269821,3.08614837,2430.1,2429.9,0.001]
[1751162274930,2.88065843,2430.0,2429.9,0.001]
[1751162275135,2.98345843,2430.0,2429.9,0.001]
[1751162276333,0.1028,2430.0,2429.9,0.001]
[1751162278540,2.98345843,2430.0,2429.9,0.001]
[1751162285424,12.98345843,2430.0,2429.9,0.001]
[1751162290868,12.88065843,2430.0,2429.9,0.001]
[1751162292877,16.616,2430.0,2429.9,0.001]
[1751162293254,10.0,2430.0,2429.9,0.001]
[1751162296972,12.88065843,2430.0,2429.9,0.001]
[1751162298393,12.98345843,2430.0,2429.9,0.001]
[1751162307498,13.53345843,2430.0,2429.9,0.001]
[1751162310328,12.98345843,2430.0,2429.9,0.001]
[1751162312101,19.61945843,2430.0,2429.9,0.001]
[1751162312918,2.98345843,2430.0,2429.9,0.001]
[1751162313291,19.61945843,2430.0,2429.9,0.001]
[1751162316053,19.51565843,2430.0,2429.9,0.8313]
[1751162316359,10.0,2430.0,2429.9,0.8313]
[1751162322915,10.0,2430.0,2429.9,0.001]
[1751162323245,12.88065843,2430.0,2429.9,0.001]
[1751162326649,27.64663619,2430.0,2429.9,0.001]
[1751162328632,27.74943619,2430.0,2429.9,0.001]
[1751162334480,19.51965843,2430.0,2429.9,0.001]
[1751162336189,10.0,2430.0,2429.9,0.001]
[1751162336388,10.0,2430.0,2429.9,0.7885]
[1751162338557,10.0,2430.0,2429.9,0.8320983]
[1751162356074,10.0,2430.0,2429.9,2.5240983]
[1751162362507,0.2056,2430.2,2429.9,5.40481065]
[1751162362710,0.2056,2430.2,2429.9,5.61041065]
[1751162363324,10.0,2430.3,2430.0,3.68923605]
[1751162363831,10.2056,2430.4,2430.0,3.73283435]
[1751162364041,10.2056,2430.4,2430.0,5.24726296]
[1751162365035,0.2056,2430.4,2430.1,2.88053493]
[1751162365606,0.2056,2430.4,2430.0,5.24722409]
[1751162365931,10.2056,2430.4,2430.1,8.321]
[1751162366858,10.2056,2430.4,2430.1,8.3645983]
[1751162367835,10.0,2430.2,2430.1,0.0435983]
[1751162368070,13.08602136,2430.2,2430.1,0.0435983]
[1751162373477,10.2056,2430.2,2430.1,0.0435983]
[1751162377204,13.08602136,2430.2,2430.1,0.0435983]
[1751162381097,10.2056,2430.2,2430.1,0.0435983]
[1751162386690,10.2056,2430.2,2430.1,2.92413819]
[1751162386874,10.0,2430.2,2430.1,4.47241522]
[1751162387207,10.0,2430.2,2430.1,1.59187533]
[1751162388095,10.0,2430.2,2430.1,2.5304983]
[1751162389598,10.0,2430.2,2430.1,0.8424983]
[1751162389806,10.0,2430.2,2430.1,9.1574983]
[1751162391401,10.0,2430.2,2430.1,9.1564983]
[1751162391907,10.0,2430.2,2430.1,0.8424983]
[1751162392110,10.0,2430.2,2430.1,9.1554983]
[1751162394807,10.0,2430.2,2430.1,9.1544983]
[1751162396510,10.0,2430.2,2430.1,13.23865385]
[1751162397005,10.0,2430.2,2430.1,13.44425385]
[1751162397510,0.2056,2430.6,2430.4,0.7758]
[1751162397711,0.2056,2430.6,2430.4,7.3988]
[1751162398299,0.2056,2430.6,2430.4,7.4423983]
[1751162401485,0.2056,2430.6,2430.4,10.3225814]
[1751162401678,0.2056,2430.6,2430.4,7.4423983]
[1751162402614,10.0,2430.5,2430.4,0.0435983]
[1751162404329,12.98286583,2430.5,2430.4,0.0435983]
[1751162405113,10.1028,2430.5,2430.4,0.0435983]
[1751162409944,10.0,2430.5,2430.4,0.0435983]
[1751162417335,10.2056,2430.5,2430.4,2.92378263]
[1751162417552,10.0,2430.5,2430.4,2.92378263]
[1751162417731,10.0,2430.5,2430.4,3.60133033]
[1751162419450,10.0,2430.5,2430.4,0.721146]
[1751162420456,10.0,2430.5,2430.4,0.0435983]
[1751162428363,10.0,2430.5,2430.4,6.6615983]
[1751162431561,10.0,2430.5,2430.4,0.0435983]
[1751162431731,10.0,2430.5,2430.4,6.6605983]
[1751162431931,10.0,2430.5,2430.4,0.0435983]
[1751162441071,10.2056,2430.5,2430.4,0.0435983]
[1751162445383,13.08566583,2430.5,2430.4,0.0435983]
[1751162446586,10.2056,2430.5,2430.4,0.0435983]
[1751162453987,13.08566583,2430.5,2430.4,0.0435983]
[1751162454999,10.2056,2430.5,2430.4,0.0435983]
[1751162455358,13.08566583,2430.5,2430.4,0.0435983]
[1751162462669,10.2056,2430.5,2430.4,0.0435983]
[1751162463198,13.08566583,2430.5,2430.4,0.0435983]
[1751162465567,10.2056,2430.5,2430.4,0.0435983]
[1751162466691,13.08566583,2430.5,2430.4,0.0435983]
[1751162475898,10.2056,2430.5,2430.4,0.0435983]
[1751162477837,13.08566583,2430.5,2430.4,0.0435983]
[1751162478428,10.2056,2430.5,2430.4,0.0435983]
[1751162479942,13.08566583,2430.5,2430.4,0.0435983]
[1751162482151,13.18846583,2430.5,2430.4,0.0435983]
[1751162485056,13.08566583,2430.5,2430.4,0.0435983]
[1751162506306,18.8771903,2430.5,2430.4,0.0435983]
[1751162507713,13.18846583,2430.5,2430.4,0.0435983]
[1751162520536,13.08566583,2430.5,2430.4,0.0435983]
[1751162520734,10.2056,2430.5,2430.4,0.0435983]
[1751162522149,10.2056,2430.5,2430.4,0.8446983]
[1751162533962,10.20107409,2430.5,2430.4,0.8446983]
[1751162536692,10.20107409,2430.5,2430.4,4.0973825]
[1751162536986,10.20107409,2430.5,2430.4,1.21719817]
[1751162537191,10.20107409,2430.5,2430.4,0.0435983]
[1751162537392,13.08113992,2430.5,2430.4,0.0435983]
[1751162537794,10.20107409,2430.5,2430.4,0.0435983]
[1751162539593,13.08113992,2430.5,2430.4,0.0435983]
[1751162550891,10.20107409,2430.5,2430.4,0.0435983]
[1751162552324,13.08113992,2430.5,2430.4,0.0435983]
[1751162556069,10.20107409,2430.5,2430.4,0.0435983]
[1751162557859,13.08113992,2430.5,2430.4,0.0435983]
[1751162558661,10.20107409,2430.5,2430.4,0.0435983]
[1751162558966,13.08113992,2430.5,2430.4,0.0435983]
[1751162583386,10.20107409,2430.5,2430.4,0.0435983]
[1751162583888,13.08113992,2430.5,2430.4,0.0435983]
[1751162585190,10.20107409,2430.5,2430.4,0.0435983]
[1751162585377,13.08113992,2430.5,2430.4,0.0435983]
[1751162590303,10.20107409,2430.5,2430.4,0.0435983]
[1751162590797,9.99547409,2430.5,2430.4,0.8063983]
[1751162591002,9.99547409,2430.5,2430.4,1.17507522]
[1751162594362,9.99547409,2430.5,2430.4,0.8063983]
[1751162600897,9.99547409,2430.5,2430.4,3.68658263]
[1751162601072,9.99547409,2430.5,2430.4,3.89218263]
[1751162602600,9.99547409,2430.5,2430.4,1.0119983]
[1751162606676,9.99547409,2430.5,2430.4,3.89218263]
[1751162606877,9.99547409,2430.5,2430.4,5.39862655]
[1751162608193,0.2056,2430.8,2430.5,2.88006583]
[1751162608395,0.2056,2430.8,2430.5,2.92366413]
[1751162610015,0.2056,2430.8,2430.6,2.87993699]
[1751162610182,10.0,2431.0,2430.7,0.58036011]
[1751162610383,0.2056,2431.0,2430.7,3.50373783]
[1751162610593,2.87917576,2431.3,2430.8,3.64575265]
[1751162610909,10.2056,2431.2,2430.8,3.64575265]
[1751162611201,10.2056,2431.2,2430.8,5.04217475]
[1751162611500,10.2056,2431.2,2430.8,5.08577305]
[1751162611803,10.0,2431.2,2430.8,5.08577305]
[1751162612004,10.0,2431.2,2430.9,0.2056]
[1751162612505,10.0,2431.2,2430.9,0.2491983]
[1751162612705,10.0,2431.2,2430.9,1.12435328]
[1751162614212,0.2056,2431.3,2431.0,3.64551483]
[1751162614411,0.2056,2431.3,2431.0,11.97911313]
[1751162615086,0.2056,2431.3,2431.0,9.0996983]
[1751162615578,10.002,2431.5,2431.0,11.97914234]
[1751162615778,0.2056,2431.4,2431.1,1.57338419]
[1751162615973,0.2056,2431.4,2431.1,4.45273605]
[1751162616174,0.2056,2431.4,2431.1,1.57338419]
[1751162616379,0.2056,2431.4,2431.1,4.49627067]
[1751162616576,0.2056,2431.4,2431.1,1.61698249]
[1751162616811,0.2056,2431.4,2431.2,1.37581146]
[1751162617407,0.2056,2431.4,2431.2,1.41940976]
[1751162617611,0.2056,2431.4,2431.2,4.29862617]
[1751162617788,10.002,2431.5,2431.3,3.66750554]
[1751162618188,10.002,2431.5,2431.3,0.7884]
[1751162618410,10.002,2431.5,2431.4,0.52925784]
[1751162618913,10.002,2431.5,2431.3,0.8319983]
[1751162620411,15.69072447,2431.5,2431.3,0.0435983]
[1751162620621,10.0,2431.4,2431.3,0.0435983]
[1751162620912,12.87899975,2431.4,2431.3,0.0435983]
[1751162622516,13.08459975,2431.4,2431.3,0.0435983]
[1751162623190,10.2056,2431.4,2431.3,0.0435983]
[1751162623897,13.08459975,2431.4,2431.3,0.0435983]
[1751162628320,13.18739975,2431.4,2431.3,0.0435983]
[1751162635007,21.30853446,2431.4,2431.3,0.0435983]
[1751162636416,51.30853446,2431.4,2431.3,0.0435983]
[1751162645221,2.88006583,2430.5,2430.4,0.7804]
[1751162645554,10.0,2430.3,2430.0,2.6466]
[1751162645728,10.0,2430.3,2430.0,3.19952647]
[1751162646051,10.0,2430.4,2430.0,6.08016523]
[1751162648656,0.2056,2430.5,2430.1,2.88053592]
[1751162649964,0.2056,2430.5,2430.2,0.8218]
[1751162650670,10.0,2430.4,2430.2,0.8218]
[1751162651170,0.2056,2430.5,2430.2,0.8218]
[1751162652566,10.0,2430.4,2430.2,0.8218]
[1751162652935,3.08568598,2430.5,2430.2,0.8218]
[1751162653164,10.0,2430.4,2430.2,0.8218]
[1751162653553,0.2056,2430.5,2430.2,0.8218]
[1751162656671,10.0,2430.4,2430.2,0.8218]
[1751162658654,0.2056,2430.5,2430.2,0.8218]
[1751162659149,10.0,2430.4,2430.2,0.8218]
[1751162661349,0.2056,2430.5,2430.2,0.8218]
[1751162662782,10.0,2430.6,2430.2,2.88035382]
[1751162662977,10.2056,2430.6,2430.3,0.7823]
[1751162663585,10.2056,2430.6,2430.3,3.66257411]
[1751162663883,0.2056,2430.6,2430.3,3.66257411]
[1751162664590,0.2056,2430.6,2430.3,0.7823]
[1751162664894,0.2056,2430.6,2430.3,3.6625921]
[1751162665093,0.2056,2430.6,2430.3,2.8802921]
[1751162665281,0.2056,2430.6,2430.4,0.7648]
[1751162667825,12.88030284,2430.3,2430.0,0.7648]
[1751162668024,12.88030284,2430.3,2430.0,0.9704]
[1751162668226,2.88053989,2430.1,2430.0,0.9704]
[1751162668518,2.88053989,2430.1,2429.9,0.001]
[1751162668712,2.88065843,2430.0,2429.9,0.001]
[1751162669402,12.8805942,2430.1,2429.9,0.001]
[1751162670815,10.0,2430.1,2429.9,0.001]
[1751162671180,12.88057287,2430.1,2429.9,0.001]
[1751162672920,10.0,2430.1,2429.9,0.001]
[1751162673496,2.88054707,2430.1,2429.9,0.001]
[1751162674517,10.0,2430.1,2429.9,0.001]
[1751162675189,2.88054951,2430.1,2429.9,0.001]
[1751162676904,2.88065843,2430.0,2429.9,0.001]
[1751162677104,27.71863553,2430.0,2429.9,0.001]
[1751162680290,12.98345843,2430.0,2429.9,0.001]
[1751162680497,19.49065843,2430.0,2429.9,0.001]
[1751162682698,19.59345843,2430.0,2429.9,0.001]
[1751162686131,49.59345843,2430.0,2429.9,0.001]
[1751162686332,50.14345843,2430.0,2429.9,0.001]
[1751162686550,50.14345843,2430.0,2429.8,0.001]
[1751162686551,13.43077698,2429.9,2429.8,0.001]
[1751162686700,42.98393269,2429.6,2429.5,0.001]
[1751162686915,59.96510979,2429.6,2429.5,0.001]
[1751162687114,62.36254545,2429.6,2429.5,0.001]
[1751162688015,70.28254545,2429.6,2429.5,0.001]
[1751162688609,2.88136988,2429.4,2429.3,0.001]
[1751162688836,17.93994698,2429.4,2429.3,0.001]
[1751162689150,28.18873635,2429.4,2429.3,0.001]
[1751162689456,2.88160711,2429.2,2429.1,0.1694233]
[1751162689657,27.73458421,2429.2,2429.1,0.1694233]
[1751162690021,29.7033174,2429.2,2429.1,0.1694233]
[1751162690345,67.6233174,2429.2,2429.1,0.1694233]
[1751162690547,68.00060113,2429.2,2429.1,0.1694233]
[1751162690751,67.6233174,2429.2,2429.1,0.1694233]
[1751162691639,67.6233174,2429.2,2428.3,0.00101633]
[1751162691640,12.88172574,2429.1,2428.3,0.00101633]
[1751162691831,53.10299023,2429.1,2428.3,0.00101633]
[1751162692032,56.84301476,2429.1,2428.3,0.00101633]
[1751162692242,0.1404,2428.3,2427.8,0.96971633]
[1751162692447,10.0,2428.1,2427.8,0.96971633]
[1751162692647,10.2056,2428.2,2427.8,0.96971633]
[1751162693168,13.08842389,2428.2,2427.8,0.96971633]
[1751162693357,2.8829176,2428.1,2427.8,0.76411633]
[1751162693534,3.0885176,2428.1,2427.8,0.76411633]
[1751162693733,0.2056,2428.1,2427.8,0.76411633]
[1751162694074,6.8376,2428.1,2427.8,0.76411633]
[1751162698040,0.2056,2428.1,2427.6,0.8077]
[1751162698379,3.08881865,2427.9,2427.6,0.8077]
[1751162698564,10.0,2427.7,2427.6,0.8077]
[1751162698771,12.88350634,2427.6,2427.5,0.005]
[1751162699088,10.0,2426.8,2425.3,0.8077]
[1751162699239,51.01010951,2426.4,2425.3,0.8077]
[1751162699442,58.22610951,2426.4,2425.3,0.8077]
[1751162699656,58.22610951,2426.4,2425.0,0.8198]
[1751162699657,10.0,2426.3,2425.0,0.8198]
[1751162699861,6.716,2426.3,2425.3,3.70604087]
[1751162700068,12.22267736,2426.4,2425.3,0.8198]
[1751162700268,2.22267736,2426.4,2425.7,2.88568663]
[1751162700480,12.22267736,2426.4,2425.6,0.8198]
[1751162700694,15.10766393,2426.4,2425.7,2.88569428]
[1751162700984,15.10766393,2426.4,2425.8,3.25615997]
[1751162701139,2.22267736,2426.4,2425.9,0.8198]
[1751162701343,2.22267736,2426.4,2425.9,3.70532508]
[1751162701652,2.22267736,2426.4,2426.1,2.8852265]
[1751162701846,2.22267736,2426.4,2426.0,3.29298103]
[1751162701847,12.22267736,2426.4,2426.0,3.29298103]
[1751162702053,12.22267736,2426.4,2426.0,0.40758745]
[1751162702394,2.22267736,2426.4,2425.9,2.88542125]
[1751162702545,2.22267736,2426.4,2426.1,0.55]
[1751162702746,2.22267736,2426.4,2426.1,3.43525276]
[1751162702950,2.22267736,2426.4,2426.3,2.88505131]
[1751162703149,2.22267736,2426.4,2426.3,3.70485131]
[1751162703350,2.22267736,2426.4,2426.3,4.41885346]
[1751162703554,2.22267736,2426.4,2426.3,3.70485131]
[1751162704391,2.22267736,2426.4,2426.3,0.8198]
[1751162704616,2.22267736,2426.4,2426.3,3.70485131]
[1751162705507,2.22267736,2426.4,2426.3,4.25485131]
[1751162706504,1.693,2427.6,2427.1,2.88408428]
[1751162706693,4.57656511,2427.6,2427.1,0.7706]
[1751162707099,10.0,2427.5,2427.1,0.7706]
[1751162707498,0.002,2427.4,2427.1,3.65466936]
[1751162707876,0.002,2427.4,2427.1,3.65469608]
[1751162708105,0.002,2427.4,2427.3,2.88386272]
[1751162712980,0.002,2427.4,2427.3,3.72756548]
[1751162713311,0.002,2427.4,2427.3,3.93316548]
[1751162713515,0.002,2427.4,2427.3,4.70526548]
[1751162714612,0.002,2427.4,2427.3,5.25526548]
[1751162715721,0.002,2427.4,2427.3,6.15526548]
[1751162716890,0.002,2427.4,2427.3,14.60426548]
[1751162717109,0.002,2427.4,2427.3,13.70426548]
[1751162717332,0.002,2427.4,2427.3,13.70526548]
[1751162720734,0.002,2427.4,2427.3,14.60526548]
[1751162721321,0.002,2427.4,2427.3,5.31156272]
[1751162721524,0.002,2427.4,2427.3,13.75656272]
[1751162721723,0.002,2427.4,2427.3,12.85656272]
[1751162728310,0.002,2427.4,2427.3,4.41156272]
[1751162728512,0.002,2427.4,2427.3,12.91256272]
[1751162728833,0.002,2427.4,2427.3,14.49221479]
[1751162730242,0.002,2427.4,2427.3,4.41156272]
[1751162730517,0.002,2427.4,2427.3,3.08946272]
[1751162730717,0.002,2427.4,2427.3,6.743]
[1751162730922,10.1424,2427.4,2427.3,6.743]
[1751162731539,10.1424,2427.4,2427.2,0.2056]
[1751162731850,10.1424,2427.4,2427.3,6.743]
[1751162732552,10.1424,2427.4,2427.2,6.9476]
[1751162732920,3.02625286,2427.4,2426.9,2.88428644]
[1751162733130,10.348,2427.4,2427.0,11.38321897]
[1751162733339,10.348,2427.4,2427.0,2.88421897]
[1751162733532,10.348,2427.4,2427.1,6.742]
[1751162734054,13.23176274,2427.4,2427.2,6.743]
[1751162734476,0.348,2427.4,2427.0,1.757]
[1751162734650,10.0,2427.2,2427.1,6.742]
[1751162735030,10.0,2427.2,2426.9,0.2056]
[1751162735231,10.0,2427.2,2427.0,8.499]
[1751162735530,10.0,2427.2,2427.0,6.741]
[1751162735962,10.0,2427.2,2426.9,0.2056]
[1751162736160,12.88399903,2427.2,2426.9,0.2056]
[1751162736330,10.0,2427.2,2427.0,6.74]
[1751162736861,10.0,2427.2,2426.9,0.2056]
[1751162737061,10.0,2427.2,2426.9,6.9446]
[1751162738280,12.8842192,2427.0,2426.9,0.2056]
[1751162738453,2.8839864,2427.2,2426.8,6.739]
[1751162738454,13.08976755,2427.1,2426.8,6.739]
[1751162739157,10.2056,2427.1,2426.8,6.739]
[1751162739364,13.08975824,2427.1,2426.8,6.739]
[1751162739575,2.88423032,2427.0,2426.8,6.739]
[1751162740374,2.88423032,2427.0,2426.6,1.9636]
[1751162740375,2.88423032,2427.0,2426.7,6.736]
[1751162741589,10.0,2427.0,2426.7,6.736]
[1751162741962,2.8842288,2427.0,2426.7,6.736]
[1751162742171,10.0,2427.0,2426.7,6.736]
[1751162742688,0.1404,2426.9,2426.7,6.734]
[1751162742892,10.1404,2426.9,2426.6,1.9636]
[1751162743087,10.1404,2426.9,2426.7,6.734]
[1751162743088,10.346,2426.9,2426.7,6.734]
[1751162743290,13.23039589,2426.9,2426.6,1.758]
[1751162743491,13.23039589,2426.9,2426.7,6.734]
[1751162743785,10.346,2426.9,2426.4,0.2056]
[1751162743957,13.23035672,2426.9,2426.5,8.492]
[1751162744277,13.23035672,2426.9,2426.4,3.09046369]
[1751162744481,13.23035672,2426.9,2426.6,8.491]
[1751162744675,13.23035672,2426.9,2426.7,6.733]